bitfinex/quotes_ETHUSD_20241023
["timestamp","ask_amount","ask_price","bid_price","bid_amount"]
[1729682829402,1.72561024,2585.4,2585.0,0.8167]
[1729682829712,1.72561024,2585.3,2585.0,0.8167]
[1729682830416,1.72561024,2585.6,2585.1,0.7935]
[1729682830587,1.72561024,2585.5,2585.1,0.7935]
[1729682831519,1.72561024,2585.6,2585.1,0.7935]
[1729682831813,1.72561024,2585.6,2585.3,0.7992]
[1729682831974,1.72561024,2585.7,2585.3,0.7992]
[1729682832173,1.72561024,2585.6,2585.3,0.7992]
[1729682833015,1.72561024,2585.7,2585.3,0.7992]
[1729682833182,1.72561024,2585.6,2585.3,0.7992]
[1729682833382,1.72561024,2585.5,2585.3,0.7992]
[1729682833577,1.72561024,2585.6,2585.3,0.7992]
[1729682835713,1.72561024,2585.7,2585.3,0.7992]
[1729682837013,1.72561024,2585.8,2585.3,0.7992]
[1729682838217,1.72561024,2585.8,2585.4,0.7685]
[1729682838516,7.34,2586.3,2585.4,0.7685]
[1729682838517,1.72561024,2585.9,2585.4,0.7685]
[1729682838677,1.72561024,2585.8,2585.4,0.7685]
[1729682838874,1.72561024,2585.9,2585.4,0.7685]
[1729682839105,1.72561024,2585.9,2585.6,0.7672]
[1729682839381,1.72561024,2585.8,2585.6,0.7672]
[1729682843401,0.0508,2586.4,2585.6,0.7672]
[1729682843658,1.72561024,2585.9,2585.6,0.7672]
[1729682843820,1.72561024,2586.0,2585.6,0.7672]
[1729682844007,1.72561024,2586.0,2585.7,0.7823]
[1729682844204,1.72561024,2585.9,2585.7,0.7823]
[1729682845149,1.72561024,2586.0,2585.7,0.7823]
[1729682847963,1.72561024,2586.1,2585.7,0.7823]
[1729682848239,1.72561024,2586.0,2585.7,0.7823]
[1729682849471,1.72561024,2586.1,2585.7,0.7823]
[1729682849978,1.72561024,2586.0,2585.7,0.7823]
[1729682850765,1.72561024,2586.3,2585.8,0.7862]
[1729682851070,0.05,2586.5,2585.1,2.01516756]
[1729682851071,1.72561024,2586.4,2586.0,0.7862]
[1729682851388,1.77561024,2586.5,2586.1,0.7862]
[1729682851737,1.72561024,2586.4,2586.1,1.07023318]
[1729682851943,1.72561024,2586.4,2586.1,0.7862]
[1729682852189,0.05,2586.5,2586.1,0.7862]
[1729682852484,1.77561024,2586.5,2586.1,0.7862]
[1729682852642,1.72561024,2586.4,2586.1,0.7862]
[1729682852838,1.77561024,2586.5,2586.1,0.7862]
[1729682853078,1.72561024,2586.4,2586.1,0.7862]
[1729682853380,1.72561024,2586.4,2586.1,1.03738102]
[1729682853884,1.77561024,2586.5,2586.1,1.03738102]
[1729682854188,0.05,2586.5,2586.1,1.03738102]
[1729682854391,0.05,2586.5,2586.4,1.72561024]
[1729682854555,0.05,2586.5,2586.4,2.52181024]
[1729682854898,0.05,2586.5,2586.4,0.7962]
[1729682855380,0.05,2586.5,2586.4,0.87351993]
[1729682856260,0.05,2586.5,2586.4,2.52181024]
[1729682856444,0.05,2586.5,2586.4,2.77399126]
[1729682860477,0.05,2586.5,2586.4,8.0496015]
[1729682860681,0.05,2586.5,2586.4,6.32399126]
[1729682861008,0.05,2586.5,2586.4,8.0496015]
[1729682867127,0.05,2586.5,2586.4,8.0496015]
[1729682880488,0.05,2586.5,2586.4,10.05548538]
[1729682881005,0.05,2586.5,2586.4,8.0496015]
[1729682881317,0.05,2586.5,2586.4,10.05647025]
[1729682883343,0.05,2586.5,2586.4,10.06647025]
[1729682888447,0.05,2586.5,2586.4,10.06908774]
[1729682889246,0.05,2586.5,2586.4,8.3434775]
[1729682889662,0.05,2586.5,2586.4,6.33399126]
[1729682889945,0.05,2586.5,2586.4,8.0596015]
[1729682890244,0.05,2586.5,2586.4,6.33399126]
[1729682890438,0.05,2586.5,2586.4,8.0596015]
[1729682890639,0.05,2586.5,2586.4,10.06969047]
[1729682893573,0.05,2586.5,2586.4,10.0715939]
[1729682893881,0.05,2586.5,2586.4,8.0596015]
[1729682895341,0.05,2586.5,2586.4,10.47170827]
[1729682897436,0.05,2586.5,2586.4,8.0596015]
[1729682900477,0.05,2586.5,2586.4,10.88235065]
[1729682900774,0.05,2586.5,2586.4,8.0596015]
[1729682901280,0.05,2586.5,2586.4,10.88235065]
[1729682902538,0.05,2586.5,2586.4,8.0596015]
[1729682903183,0.05,2586.5,2586.4,8.0696015]
[1729682903478,0.05,2586.5,2586.4,11.40397393]
[1729682904745,0.05,2586.5,2586.4,11.40636223]
[1729682905948,0.05,2586.5,2586.4,8.0696015]
[1729682906588,0.05,2586.5,2586.4,11.40636223]
[1729682908286,0.05,2586.5,2586.4,9.68075199]
[1729682908445,0.05,2586.5,2586.4,6.34399126]
[1729682908950,0.05,2586.5,2586.4,8.0696015]
[1729682909282,0.05,2586.5,2586.4,6.34399126]
[1729682909753,0.05,2586.5,2586.4,8.0696015]
[1729682909960,0.05,2586.5,2586.4,7.2734015]
[1729682910961,0.05,2586.5,2586.4,7.2634015]
[1729682912565,0.05,2586.5,2586.4,5.53779126]
[1729682913366,0.05,2586.5,2586.4,3.80218102]
[1729682913568,0.05,2586.5,2586.4,8.35428349]
[1729682913799,0.05,2586.5,2586.4,5.52779126]
[1729682914214,0.1008,2586.5,2586.4,3.0]
[1729682914508,0.1008,2586.5,2586.4,7.14916845]
[1729682914670,0.1008,2586.5,2586.4,4.14916845]
[1729682915492,0.1008,2586.5,2586.4,4.69916845]
[1729682915703,0.1008,2586.5,2586.4,2.27561024]
[1729682916269,0.1008,2586.5,2586.4,4.69924923]
[1729682916769,0.1008,2586.5,2586.4,2.97363899]
[1729682916970,0.1008,2586.5,2586.4,0.55]
[1729682918484,0.1008,2586.5,2586.4,2.27561024]
[1729682919291,0.1008,2586.5,2586.3,2.27561024]
[1729682920820,0.1008,2586.5,2586.4,1.72561024]
[1729682921114,0.1008,2586.5,2586.4,2.27561024]
[1729682921682,0.1008,2586.5,2586.3,2.27561024]
[1729682922394,0.1008,2586.5,2586.4,1.72561024]
[1729682922592,0.1008,2586.5,2586.3,1.72561024]
[1729682922801,0.1008,2586.5,2586.4,1.72561024]
[1729682930021,0.1008,2586.5,2586.3,1.72561024]
[1729682931921,0.0508,2586.4,2586.1,2.27561024]
[1729682932124,0.0508,2586.4,2586.1,2.50317126]
[1729682932826,0.0508,2586.4,2586.2,1.72561024]
[1729682933930,0.0508,2586.4,2586.1,2.50317126]
[1729682934223,0.0508,2586.4,2586.1,2.27561024]
[1729682934732,0.0508,2586.4,2586.1,4.29569359]
[1729682935942,0.0508,2586.4,2586.1,2.02008335]
[1729682937492,0.0508,2586.4,2586.1,3.74569359]
[1729682937792,0.0508,2586.4,2586.1,2.02008335]
[1729682939223,0.0508,2586.4,2586.1,3.74569359]
[1729682940796,0.0508,2586.4,2586.1,2.02008335]
[1729682941613,1.72561024,2586.4,2586.1,2.02008335]
[1729682941923,0.0508,2586.3,2586.1,2.02008335]
[1729682944734,0.0508,2586.3,2586.1,1.72561024]
[1729682944944,0.0508,2586.3,2586.0,1.72561024]
[1729682954518,0.0508,2586.3,2585.9,1.72561024]
[1729682954690,0.0508,2586.3,2585.9,2.32837126]
[1729682955416,0.0508,2586.3,2586.0,1.72561024]
[1729682959477,0.0508,2586.3,2586.0,3.74135437]
[1729682960507,0.0508,2586.3,2586.1,2.01574413]
[1729682961342,0.0508,2586.3,2586.0,1.72561024]
[1729682961503,0.0508,2586.3,2586.1,2.25556987]
[1729682963424,0.0508,2586.3,2586.2,2.02273274]
[1729682963637,0.0508,2586.3,2586.1,2.02273274]
[1729682966107,0.0508,2586.3,2586.1,2.02272027]
[1729682969441,0.0508,2586.3,2586.2,2.02272027]
[1729682970685,0.1008,2586.5,2586.2,2.02272027]
[1729682970865,0.1008,2586.5,2586.3,2.02417858]
[1729682980612,0.1008,2586.5,2586.3,2.02342556]
[1729682983010,0.1008,2586.5,2586.4,0.19344423]
[1729682992258,0.1008,2586.5,2586.2,2.02365952]
[1729682992443,0.05,2586.5,2586.3,0.99534798]
[1729682992647,0.05,2586.5,2586.3,0.8019]
[1729682993052,0.05,2586.5,2586.4,0.19345028]
[1729682995740,0.05,2586.5,2586.2,2.30792254]
[1729682996070,0.05,2586.5,2586.3,0.19344776]
[1729682996278,0.05,2586.5,2586.4,0.19344776]
[1729682996479,1.77561024,2586.5,2586.4,0.19344776]
[1729682996633,1.82641024,2586.5,2586.4,0.19344776]
[1729682996839,1.82641024,2586.5,2586.1,2.02369659]
[1729682997166,1.72561024,2586.3,2586.2,0.19345518]
[1729682998032,1.72561024,2586.3,2586.2,2.21715177]
[1729682998237,1.72561024,2586.3,2586.2,0.19345518]
[1729682998780,1.77641024,2586.3,2586.2,0.19345518]
[1729682999359,1.77641024,2586.3,2586.2,0.19345687]
[1729683000653,1.77641024,2586.3,2586.2,0.19345702]
[1729683001936,1.77641024,2586.3,2586.2,0.19345732]
[1729683002475,0.1008,2586.5,2586.2,0.19345732]
[1729683002683,0.1008,2586.5,2586.3,0.19345732]
[1729683002984,0.1008,2586.5,2586.1,2.02369659]
[1729683003181,0.1008,2586.5,2586.2,0.19345589]
[1729683003483,0.1008,2586.5,2586.3,0.19345589]
[1729683003787,1.72561024,2586.4,2586.1,2.02352631]
[1729683003951,1.72561024,2586.3,2586.2,0.19345678]
[1729683004153,1.72561024,2586.4,2586.2,0.19345678]
[1729683004492,1.72561024,2586.4,2586.3,0.19345678]
[1729683007294,0.0508,2586.3,2585.7,2.02352631]
[1729683007592,0.0508,2586.3,2585.8,0.19348499]
[1729683007795,0.0508,2586.3,2585.5,2.02352631]
[1729683007951,0.0508,2585.9,2585.6,0.19349522]
[1729683008152,1.72561024,2585.8,2585.7,0.19349522]
[1729683008576,1.77641024,2585.9,2585.7,0.19349522]
[1729683008782,1.77641024,2585.9,2585.5,2.02352631]
[1729683008992,1.72561024,2585.8,2585.6,0.19349497]
[1729683009197,1.72561024,2585.8,2585.7,0.19349387]
[1729683009396,0.0508,2585.9,2585.7,0.19349387]
[1729683009554,1.77641024,2585.9,2585.5,2.48117997]
[1729683009754,1.77641024,2585.9,2585.6,0.19349205]
[1729683010078,1.77641024,2585.9,2585.7,0.19349205]
[1729683010282,1.77641024,2585.9,2585.5,2.48117997]
[1729683010480,1.77641024,2585.9,2585.6,0.19349313]
[1729683010679,1.77641024,2585.9,2585.7,0.19349313]
[1729683010887,1.77641024,2585.9,2585.5,2.48117997]
[1729683011068,1.77641024,2585.9,2585.6,0.19349332]
[1729683011267,1.72561024,2586.0,2585.7,0.19349332]
[1729683011468,0.0508,2586.4,2585.7,2.55151024]
[1729683011669,1.72561024,2586.1,2585.8,0.45636962]
[1729683011996,1.72561024,2586.2,2585.9,0.19347966]
[1729683012376,1.72561024,2586.2,2585.8,0.26288597]
[1729683012575,1.72561024,2586.2,2585.9,0.19347577]
[1729683013796,0.0508,2586.4,2585.9,0.19347577]
[1729683013987,1.72561024,2586.2,2585.8,0.26288597]
[1729683014195,1.72561024,2586.2,2585.9,0.19347463]
[1729683015862,1.72561024,2586.2,2585.8,0.26288597]
[1729683016093,1.72561024,2586.2,2585.9,0.19347636]
[1729683016292,1.72561024,2586.1,2585.9,0.19347636]
[1729683016609,1.72561024,2586.1,2585.9,0.19347663]
[1729683017160,1.72561024,2586.2,2585.9,0.19347663]
[1729683017780,1.72561024,2586.4,2586.0,0.8323]
[1729683017966,1.72561024,2586.3,2586.0,1.12211343]
[1729683018178,1.72561024,2586.3,2586.0,0.8323]
[1729683018483,1.72561024,2586.3,2586.0,1.02577181]
[1729683018664,1.72561024,2586.3,2586.0,0.8323]
[1729683018869,1.72561024,2586.3,2586.0,1.02577181]
[1729683019179,1.72561024,2586.3,2586.0,0.8323]
[1729683019791,1.72561024,2586.3,2586.0,1.02576971]
[1729683019963,1.72561024,2586.3,2586.0,0.8323]
[1729683020168,1.72561024,2586.3,2586.0,1.02576971]
[1729683020399,1.72561024,2586.3,2586.0,0.8323]
[1729683020601,1.72561024,2586.3,2586.0,1.02576971]
[1729683020804,1.72561024,2586.3,2586.0,0.8323]
[1729683021466,1.72561024,2586.3,2586.1,0.19346727]
[1729683021965,1.72561024,2586.3,2586.0,0.8323]
[1729683022470,1.72561024,2586.3,2586.1,0.19346382]
[1729683022784,1.72561024,2586.2,2586.1,0.19346382]
[1729683023308,1.72561024,2586.3,2586.1,0.19346382]
[1729683024303,0.05,2586.5,2586.0,0.8323]
[1729683024478,1.72561024,2586.3,2586.1,0.19346332]
[1729683024677,1.72561024,2586.3,2586.0,0.8323]
[1729683025010,1.72561024,2586.4,2586.1,0.19346321]
[1729683025223,1.72561024,2586.4,2586.0,1.15164991]
[1729683025372,1.72561024,2586.4,2586.1,0.19346008]
[1729683025680,1.72561024,2586.4,2586.2,0.19346]
[1729683026013,1.72561024,2586.4,2586.0,1.15164991]
[1729683026215,1.72561024,2586.3,2586.1,0.19345989]
[1729683026370,1.72561024,2586.3,2586.2,0.19345989]
[1729683026566,1.72561024,2586.4,2586.2,0.19345989]
[1729683026770,1.72561024,2586.3,2586.0,0.8323]
[1729683027069,1.72561024,2586.3,2586.1,0.19346006]
[1729683027383,1.72561024,2586.4,2586.2,0.19346006]
[1729683027584,1.72561024,2586.4,2586.0,0.8323]
[1729683027907,1.72561024,2586.4,2586.1,0.19345693]
[1729683028101,1.72561024,2586.4,2586.2,0.19345693]
[1729683028301,1.72561024,2586.4,2586.0,0.8323]
[1729683028604,1.72561024,2586.4,2586.1,0.19345717]
[1729683028803,0.05,2586.5,2586.2,0.19345717]
[1729683028966,0.05,2586.5,2586.3,0.98265717]
[1729683029166,1.72561024,2586.4,2586.3,0.7892]
[1729683029374,1.72561024,2586.4,2586.3,0.98265334]
[1729683029770,1.77561024,2586.5,2586.3,0.98265334]
[1729683029970,1.77561024,2586.5,2586.3,0.7892]
[1729683030672,1.72561024,2586.4,2586.3,0.7892]
[1729683031005,1.72561024,2586.4,2586.1,0.97715343]
[1729683031300,1.72561024,2586.3,2586.2,0.19345343]
[1729683031508,1.72561024,2586.4,2586.2,0.19345343]
[1729683031712,1.72561024,2586.3,2586.1,0.7837]
[1729683032009,1.7240933,2586.3,2586.2,0.19345483]
[1729683032399,1.72561024,2586.3,2586.2,0.19345483]
[1729683032610,0.05,2586.5,2586.2,0.19345483]
[1729683032611,1.72561024,2586.4,2586.2,0.19345483]
[1729683032819,0.05,2586.5,2586.1,1.09612604]
[1729683033116,0.04905993,2586.5,2586.2,0.19345378]
[1729683033294,0.04905993,2586.5,2586.1,1.09612604]
[1729683033620,0.04905993,2586.5,2586.2,0.19345422]
[1729683033621,1.72561024,2586.3,2586.2,0.19345422]
[1729683034329,1.72561024,2586.4,2586.2,0.19345422]
[1729683034490,0.04905993,2586.5,2586.1,1.17345417]
[1729683034692,1.77467017,2586.5,2586.2,0.48336011]
[1729683034920,1.77467017,2586.5,2586.3,0.19345367]
[1729683035194,1.77467017,2586.5,2586.1,1.17345417]
[1729683035416,1.77467017,2586.5,2586.2,0.19345387]
[1729683035624,1.77467017,2586.5,2586.1,1.17345417]
[1729683035794,1.77467017,2586.5,2586.2,0.19345144]
[1729683035995,1.77467017,2586.5,2586.2,0.33880946]
[1729683036503,1.72561024,2586.3,2586.1,0.7837]
[1729683036706,1.72561024,2586.3,2586.2,0.19345318]
[1729683037114,1.72561024,2586.3,2586.2,0.19345294]
[1729683037436,1.72561024,2586.4,2586.2,0.19345294]
[1729683037723,1.72561024,2586.4,2586.1,0.7837]
[1729683038031,0.04905993,2586.5,2586.3,0.7977]
[1729683038191,1.77467017,2586.5,2586.3,0.7977]
[1729683038815,0.04905993,2586.5,2586.3,0.7977]
[1729683039019,0.04905993,2586.5,2586.4,0.19343953]
[1729683039705,1.77467017,2586.5,2586.4,0.19343953]
[1729683040316,0.04905993,2586.5,2586.4,0.19343953]
[1729683040529,1.77467017,2586.5,2586.4,0.19343953]
[1729683040704,0.04905993,2586.5,2586.4,0.1934354]
[1729683040905,0.04905993,2586.5,2586.3,0.7977]
[1729683041096,0.04905993,2586.5,2586.4,0.19343625]
[1729683041297,1.77467017,2586.5,2586.4,0.19343625]
[1729683042694,1.77467017,2586.5,2586.2,0.19345644]
[1729683042889,1.72561024,2586.3,2586.1,0.28051244]
[1729683043094,1.72561024,2586.3,2586.2,0.19346202]
[1729683043640,1.77641024,2586.3,2585.8,3.64542676]
[1729683043842,1.72561024,2586.0,2585.9,0.5580137]
[1729683044053,1.72561024,2586.0,2585.9,0.36454268]
[1729683044203,1.72561024,2586.0,2585.9,0.55801523]
[1729683044843,1.72561024,2586.0,2585.9,0.19347255]
[1729683045700,1.72561024,2586.0,2585.6,0.779]
[1729683045942,0.0508,2586.3,2585.7,0.19348841]
[1729683046112,0.0508,2586.3,2585.6,0.779]
[1729683046318,0.0508,2586.3,2585.7,0.19349417]
[1729683046528,0.0508,2586.3,2585.6,0.779]
[1729683046708,0.0508,2586.3,2585.7,0.1934941]
[1729683046908,1.72561024,2585.8,2585.6,0.779]
[1729683047131,1.72561024,2585.8,2585.7,0.19349213]
[1729683047650,0.0508,2586.3,2585.7,0.19349213]
[1729683047651,1.72561024,2585.9,2585.7,0.19349213]
[1729683047853,1.72561024,2585.9,2585.6,0.779]
[1729683048052,1.72561024,2585.9,2585.7,0.19348776]
[1729683048257,1.72561024,2585.9,2585.6,0.779]
[1729683048407,1.72561024,2585.9,2585.7,0.19348653]
[1729683048745,1.72561024,2585.8,2585.6,0.779]
[1729683048939,1.72561024,2585.8,2585.7,0.1934879]
[1729683049112,1.72561024,2585.9,2585.7,0.1934879]
[1729683049314,1.72561024,2585.9,2585.6,1.05911559]
[1729683049624,1.72561024,2585.9,2585.7,0.19348739]
[1729683049823,1.72561024,2585.9,2585.6,1.05911559]
[1729683050019,1.72561024,2585.9,2585.7,0.1934879]
[1729683050753,1.72561024,2586.0,2585.7,0.1934879]
[1729683051411,1.72561024,2586.0,2585.7,0.1934873]
[1729683051616,1.72561024,2586.0,2585.6,1.05911559]
[1729683051938,1.72561024,2586.1,2585.7,0.50154082]
[1729683052110,1.72561024,2586.0,2585.7,0.50154316]
[1729683052311,1.72561024,2586.0,2585.7,0.19348552]
[1729683052706,1.72561024,2586.1,2585.7,0.19348552]
[1729683052943,1.77641024,2586.3,2585.9,0.7747]
[1729683054444,1.72561024,2586.2,2585.9,0.7747]
[1729683056206,1.72561024,2586.3,2585.9,0.7747]
[1729683057648,0.09985993,2586.5,2585.9,0.7747]
[1729683057827,1.72561024,2586.3,2585.9,0.7747]
[1729683058024,1.72561024,2586.3,2585.9,1.04407885]
[1729683058556,1.72561024,2586.2,2585.9,1.04407885]
[1729683058848,1.72561024,2586.3,2585.9,0.7747]
[1729683059226,1.72561024,2586.2,2585.9,0.7747]
[1729683061742,1.72561024,2586.1,2585.9,0.7747]
[1729683061927,1.72561024,2586.1,2585.7,0.19347472]
[1729683062256,1.72561024,2586.1,2585.8,0.19347472]
[1729683062458,1.72561024,2586.1,2585.7,0.19347472]
[1729683062618,1.72561024,2586.1,2585.8,0.19347472]
[1729683063361,1.77641024,2586.2,2585.8,0.19347472]
[1729683063659,1.72561024,2586.1,2585.8,0.19347472]
[1729683065548,1.77641024,2586.2,2585.8,0.19347472]
[1729683065931,1.72561024,2586.2,2585.7,0.502958]
[1729683066429,1.72561024,2586.2,2585.8,0.19348304]
[1729683066953,1.72561024,2586.1,2585.8,0.19348304]
[1729683068366,1.72561024,2586.1,2585.7,0.502958]
[1729683068518,1.72561024,2586.1,2585.8,0.19348323]
[1729683069020,1.72561024,2586.2,2585.9,0.8029]
[1729683072127,1.72561024,2586.0,2585.9,0.8029]
[1729683072328,1.72561024,2586.0,2585.7,1.305858]
[1729683072839,1.72561024,2585.8,2585.5,0.8029]
[1729683073039,1.72561024,2585.7,2585.6,0.19349136]
[1729683073719,1.72561024,2585.7,2585.6,0.19351414]
[1729683074159,1.72561024,2585.7,2585.3,0.8029]
[1729683074319,1.72561024,2585.6,2585.4,0.19351755]
[1729683074655,0.0508,2586.0,2585.5,0.19351755]
[1729683074857,0.0508,2585.5,2585.0,0.811]
[1729683075167,1.72561024,2585.3,2585.1,0.19354145]
[1729683075465,0.0508,2585.5,2585.2,0.19354145]
[1729683075671,1.72561024,2585.4,2585.0,0.811]
[1729683075879,1.72561024,2585.5,2585.1,0.19353235]
[1729683076174,0.0508,2585.7,2585.2,0.95012703]
[1729683076175,1.72561024,2585.6,2585.2,0.95012703]
[1729683076374,1.72561024,2585.6,2585.3,0.19352703]
[1729683076542,1.72561024,2585.6,2585.2,0.7566]
[1729683076738,1.72561024,2585.6,2585.3,0.19352464]
[1729683077050,1.72561024,2585.6,2585.2,0.7566]
[1729683077233,1.72561024,2585.6,2585.3,0.1935258]
[1729683077433,1.72561024,2585.6,2585.2,0.7566]
[1729683078083,1.72561024,2585.6,2585.3,0.19352463]
[1729683078261,1.72561024,2585.6,2585.2,0.7566]
[1729683078671,0.01,2586.2,2585.4,0.791]
[1729683078672,1.72561024,2585.8,2585.4,0.791]
[1729683079073,0.0508,2586.2,2585.4,0.791]
[1729683079284,1.72561024,2585.5,2585.3,0.19350816]
[1729683079479,1.72561024,2585.5,2585.2,0.19352602]
[1729683079684,1.72561024,2585.5,2585.1,0.791]
[1729683079685,1.72561024,2585.5,2585.3,0.19352602]
[1729683079853,1.72561024,2585.6,2585.2,0.19352602]
[1729683080183,1.72561024,2585.6,2585.2,0.27101363]
[1729683080389,1.72561024,2585.6,2585.2,0.46453759]
[1729683083057,1.72561024,2585.7,2585.3,0.7953]
[1729683084591,1.72561024,2585.7,2585.3,0.98882396]
[1729683085301,1.72561024,2585.7,2585.4,0.19352396]
[1729683087064,1.72561024,2585.7,2585.3,0.7953]
[1729683087376,1.72561024,2585.7,2585.4,0.19350858]
[1729683089490,1.72561024,2585.8,2585.4,0.19350858]
[1729683090777,1.72561024,2585.8,2585.3,1.08222798]
[1729683090984,1.72561024,2585.8,2585.4,0.19350726]
[1729683091500,1.72561024,2585.7,2585.4,0.19350726]
[1729683093916,1.72561024,2585.6,2585.4,0.19350726]
[1729683094067,1.72561024,2585.7,2585.3,1.08222798]
[1729683094267,1.72561024,2585.7,2585.3,0.98882007]
[1729683094479,1.72561024,2585.7,2585.3,0.7953]
[1729683094714,1.72561024,2585.6,2585.3,0.7953]
[1729683097304,1.72561024,2585.6,2585.4,0.19351968]
[1729683097465,1.72561024,2585.6,2585.3,0.7953]
[1729683098407,1.72561024,2585.6,2585.4,0.19352042]
[1729683098696,0.0508,2585.9,2585.4,0.19352042]
[1729683098909,1.72561024,2585.5,2585.4,0.19352042]
[1729683099267,1.72561024,2585.6,2585.4,0.19352192]
[1729683099487,1.72561024,2585.5,2585.3,0.7953]
[1729683099692,1.72561024,2585.6,2585.4,0.19351959]
[1729683099914,1.72561024,2585.6,2585.3,0.7953]
[1729683100075,1.72561024,2585.6,2585.4,0.19351952]
[1729683100305,1.72561024,2585.6,2585.3,0.7953]
[1729683100520,1.72561024,2585.6,2585.4,0.19351958]
[1729683100728,1.72561024,2585.6,2585.3,0.7953]
[1729683101035,1.72561024,2585.6,2585.4,0.19351959]
[1729683101234,1.72561024,2585.6,2585.3,0.7953]
[1729683101398,1.72561024,2585.6,2585.4,0.19351969]
[1729683101602,1.72561024,2585.6,2585.3,0.7953]
[1729683101820,1.72561024,2585.6,2585.4,0.19351963]
[1729683102125,1.72561024,2585.6,2585.3,0.7953]
[1729683102333,1.72561024,2585.6,2585.4,0.19351841]
[1729683102494,1.72561024,2585.6,2585.5,0.19351841]
[1729683105151,0.0508,2585.9,2585.5,0.19351841]
[1729683105434,1.72561024,2586.1,2585.6,1.00730986]
[1729683105611,1.72561024,2586.1,2585.7,0.19349016]
[1729683105929,1.72561024,2586.0,2585.8,0.19349016]
[1729683106144,0.0508,2586.4,2585.9,0.99988643]
[1729683106447,1.72561024,2586.0,2585.9,0.8064]
[1729683106933,1.72561024,2586.2,2585.9,0.8064]
[1729683107130,0.0508,2586.4,2585.9,0.8064]
[1729683107709,1.72561024,2586.1,2585.9,0.8064]
[1729683109355,1.72561024,2586.2,2585.9,0.8064]
[1729683109512,1.72561024,2586.1,2585.9,0.8064]
[1729683109711,1.72561024,2586.2,2585.9,0.8064]
[1729683110151,1.72561024,2586.1,2585.9,0.8064]
[1729683115960,1.72561024,2586.2,2585.9,0.8064]
[1729683116130,1.72561024,2586.1,2585.9,0.8064]
[1729683116316,1.72561024,2586.2,2585.9,0.8064]
[1729683116859,1.72561024,2586.1,2585.9,0.8064]
[1729683117358,1.72561024,2586.2,2585.9,0.8064]
[1729683117560,1.72561024,2586.1,2585.9,0.8064]
[1729683118432,1.72561024,2586.2,2585.9,0.8064]
[1729683118632,1.72561024,2586.1,2585.9,0.8064]
[1729683119146,1.72561024,2586.2,2585.9,0.8064]
[1729683119341,1.72561024,2586.1,2585.9,0.8064]
[1729683120452,1.72561024,2586.3,2585.9,0.8064]
[1729683120637,1.72561024,2586.1,2585.9,0.8064]
[1729683120938,1.72561024,2586.0,2585.9,0.8064]
[1729683121135,1.72561024,2586.0,2585.9,0.99987279]
[1729683121322,1.72561024,2586.1,2585.9,0.99987279]
[1729683121538,1.72561024,2586.1,2585.9,0.8064]
[1729683122158,1.72561024,2586.2,2585.9,0.8064]
[1729683123328,0.04905993,2586.5,2585.9,0.8064]
[1729683123329,1.72561024,2586.1,2585.9,0.8064]
[1729683124229,1.72561024,2586.2,2585.9,0.8064]
[1729683124440,1.72561024,2586.3,2586.0,0.07733271]
[1729683124727,1.72561024,2586.2,2586.1,0.1934661]
[1729683124947,0.04905993,2586.5,2586.1,0.1934661]
[1729683125153,0.04905993,2586.5,2585.9,0.8064]
[1729683125349,0.04905993,2586.5,2586.0,0.19346644]
[1729683125559,0.04905993,2586.5,2585.9,0.8064]
[1729683125777,0.04905993,2586.5,2586.0,0.19347077]
[1729683125936,0.04905993,2586.5,2585.9,0.88373223]
[1729683126137,0.04905993,2586.5,2586.1,0.7698]
[1729683126138,1.72561024,2586.4,2586.1,0.7698]
[1729683126369,1.72561024,2586.3,2586.1,0.96327105]
[1729683126566,1.72561024,2586.3,2586.1,0.7698]
[1729683126773,1.72561024,2586.4,2586.1,0.7698]
[1729683127671,1.72561024,2586.3,2586.1,0.7698]
[1729683127843,1.77467017,2586.5,2586.1,0.7698]
[1729683128044,1.72561024,2586.4,2586.1,0.7698]
[1729683128260,0.04905993,2586.5,2586.0,0.07732793]
[1729683128261,1.77467017,2586.5,2586.0,1.3577]
[1729683128553,1.77467017,2586.5,2586.3,0.8077]
[1729683129549,1.72561024,2586.4,2586.3,0.8077]
[1729683133089,1.77467017,2586.5,2586.3,0.8077]
[1729683133861,1.72561024,2586.4,2586.3,0.8077]
[1729683134184,1.77467017,2586.5,2586.3,1.00114712]
[1729683134481,1.72561024,2586.4,2586.3,0.8077]
[1729683134685,1.72561024,2586.4,2586.3,1.00114691]
[1729683135995,1.77467017,2586.5,2586.3,1.00114779]
[1729683136187,1.77467017,2586.5,2586.3,0.8077]
[1729683137381,1.72561024,2586.4,2586.3,0.8077]
[1729683137582,1.72561024,2586.4,2586.3,1.00114714]
[1729683138350,1.77467017,2586.5,2586.3,1.00114714]
[1729683138584,1.77467017,2586.5,2586.3,0.8077]
[1729683138758,1.72561024,2586.4,2586.3,0.8077]
[1729683138960,1.72561024,2586.4,2586.3,1.00114729]
[1729683139658,1.77467017,2586.5,2586.3,1.00114729]
[1729683140158,0.04905993,2586.5,2586.3,0.8077]
[1729683140382,0.04905993,2586.5,2586.4,0.27076333]
[1729683141887,0.04905993,2586.5,2586.4,0.19343934]
[1729683142800,0.04905993,2586.5,2586.3,0.8077]
[1729683142954,0.04905993,2586.5,2586.4,0.19343875]
[1729683143319,0.04905993,2586.5,2586.4,0.27075832]
[1729683146097,0.04905993,2586.5,2586.4,0.19343875]
[1729683146317,0.04905993,2586.5,2586.4,0.07731931]
[1729683146616,0.04905993,2586.5,2586.4,0.27075905]
[1729683149779,0.04905993,2586.5,2586.4,0.07731931]
[1729683149980,0.04905993,2586.5,2586.4,0.27075672]
[1729683150394,0.04905993,2586.5,2586.4,0.19343741]
[1729683151907,0.04905993,2586.5,2586.4,0.27075655]
[1729683152088,0.04905993,2586.5,2586.4,0.19343741]
[1729683152268,0.04905993,2586.5,2586.4,0.27075529]
[1729683154911,0.04905993,2586.5,2586.4,1.51413741]
[1729683155609,0.04905993,2586.5,2586.4,0.96413741]
[1729683155988,1.77467017,2586.5,2586.4,0.96413741]
[1729683156513,0.04905993,2586.5,2586.4,0.96413741]
[1729683157308,0.04905993,2586.5,2586.4,0.96413801]
[1729683167844,0.04905993,2586.5,2586.4,0.96413823]
[1729683169877,0.04905993,2586.5,2586.4,1.26950856]
[1729683170693,0.04905993,2586.5,2586.4,1.81950856]
[1729683170897,0.04905993,2586.5,2586.4,3.84279651]
[1729683171102,0.04905993,2586.5,2586.4,3.64935828]
[1729683171400,0.04905993,2586.5,2586.4,3.91119942]
[1729683171762,0.04905993,2586.5,2586.4,5.63680966]
[1729683171969,0.04905993,2586.5,2586.4,3.91119942]
[1729683173081,0.04905993,2586.5,2586.4,3.91102424]